[Event "Goteborg Open 2024"]
[Site "Goteborgs Schackcentrum, Vegatan 20, Gothenburg, Sweden"]
[Date "2024.08.02"]
[Round "1.1"]
[White "Westlund, Tim"]
[Black "Rasti, Arvin"]
[Result "0-1"]
[TimeControl "15 minutes + 5 seconds per move from move one (Round 1 - 4) / 90 minutes + 30 seconds per move from move one (Round 5 - 8)"]
[BlackTitle "FM"]
[BlackFideId "1741160"]
[WhiteElo "1886"]
[BlackElo "2195"]

1. e4 {[%clk 00:15:08]} {[%emt 00:00:01]} c5 {[%clk 00:15:06]} {[%emt
00:00:05]} 2. Nf3 {[%clk 00:15:11]} {[%emt 00:00:02]} d6 {[%clk 00:15:10]}
{[%emt 00:00:01]} 3. Bb5+ {[%clk 00:15:14]} {[%emt 00:00:03]} Nd7 {[%clk
00:15:10]} {[%emt 00:00:04]} 4. O-O {[%clk 00:15:06]} {[%emt 00:00:10]} a6
{[%clk 00:15:13]} {[%emt 00:00:05]} 5. Bd3 {[%clk 00:15:09]} {[%emt 00:00:01]}
b5 {[%clk 00:15:03]} {[%emt 00:00:16]} 6. c3 {[%clk 00:14:59]} {[%emt
00:00:15]} Qc7 {[%clk 00:14:57]} {[%emt 00:00:11]} 7. Bc2 {[%clk 00:14:52]}
{[%emt 00:00:12]} Ngf6 {[%clk 00:14:57]} {[%emt 00:00:05]} 8. d4 {[%clk
00:14:25]} {[%emt 00:00:32]} e6 {[%clk 00:14:48]} {[%emt 00:00:14]} 9. Nbd2
{[%clk 00:13:49]} {[%emt 00:00:41]} Be7 {[%clk 00:14:45]} {[%emt 00:00:08]} 10.
Re1 {[%clk 00:12:53]} {[%emt 00:01:01]} Bb7 {[%clk 00:14:37]} {[%emt 00:00:14]}
11. Nf1 {[%clk 00:11:52]} {[%emt 00:01:05]} Rc8 {[%clk 00:13:56]} {[%emt
00:00:46]} 12. Ng3 {[%clk 00:10:47]} {[%emt 00:01:10]} h5 {[%clk 00:13:21]}
{[%emt 00:00:40]} 13. Bg5 {[%clk 00:08:10]} {[%emt 00:02:42]} cxd4 {[%clk
00:13:24]} {[%emt 00:00:02]} 14. Nxd4 {[%clk 00:06:46]} {[%emt 00:01:28]} h4
{[%clk 00:13:17]} {[%emt 00:00:13]} 15. Nf1 {[%clk 00:05:42]} {[%emt 00:01:09]}
Rh5 {[%clk 00:12:29]} {[%emt 00:00:52]} 16. f4 {[%clk 00:04:53]} {[%emt
00:00:54]} Rh8 {[%clk 00:11:47]} {[%emt 00:00:48]} 17. Nd2 {[%clk 00:04:01]}
{[%emt 00:00:57]} Bd8 {[%clk 00:09:46]} {[%emt 00:02:06]} 18. Bb3 {[%clk
00:03:24]} {[%emt 00:00:42]} Qb6 {[%clk 00:09:19]} {[%emt 00:00:33]} 19. Kh1
{[%clk 00:03:08]} {[%emt 00:00:20]} Nh5 {[%clk 00:08:57]} {[%emt 00:00:28]} 20.
Qg4 {[%clk 00:00:56]} {[%emt 00:02:17]} Bxg5 {[%clk 00:08:23]} {[%emt
00:00:39]} 21. fxg5 {[%clk 00:00:39]} {[%emt 00:00:22]} Ne5 {[%clk 00:07:06]}
{[%emt 00:01:22]} 22. Qh3 {[%clk 00:00:40]} {[%emt 00:00:03]} Qd8 {[%clk
00:05:39]} {[%emt 00:01:32]} 23. N2f3 {[%clk 00:00:24]} {[%emt 00:00:21]} Nf4
{[%clk 00:05:38]} {[%emt 00:00:06]} 24. Nxe5 {[%clk 00:00:13]} {[%emt
00:00:15]} Nxh3 {[%clk 00:05:40]} {[%emt 00:00:04]} 25. Nxf7 {[%clk 00:00:15]}
{[%emt 00:00:04]} Kxf7 {[%clk 00:05:18]} {[%emt 00:00:27]} 26. Rf1+ {[%clk
00:00:16]} {[%emt 00:00:03]} Ke7 {[%clk 00:05:09]} {[%emt 00:00:14]} 27. Bxe6
{[%clk 00:00:17]} {[%emt 00:00:04]} Rf8 {[%clk 00:05:10]} {[%emt 00:00:04]} 28.
Bxh3 {[%clk 00:00:19]} {[%emt 00:00:03]} Bxe4 {[%clk 00:04:38]} {[%emt
00:00:36]} 29. Rfe1 {[%clk 00:00:21]} {[%emt 00:00:03]} d5 {[%clk 00:04:29]}
{[%emt 00:00:15]} 30. Bxc8 {[%clk 00:00:15]} {[%emt 00:00:12]} Qxc8 {[%clk
00:04:33]} 31. Re2 {[%clk 00:00:12]} {[%emt 00:00:07]} h3 {[%clk 00:04:34]}
{[%emt 00:00:04]} 32. Kg1 {[%clk 00:00:15]} {[%emt 00:00:02]} hxg2 {[%clk
00:04:34]} {[%emt 00:00:05]} 33. Rae1 {[%clk 00:00:17]} {[%emt 00:00:03]} Rf1+
{[%clk 00:04:38]} {[%emt 00:00:01]} 34. Rxf1 {[%clk 00:00:20]} {[%emt
00:00:02]} gxf1=Q+ {[%emt 00:00:05]} 35. Kxf1 {[%clk 00:00:22]} {[%emt
00:00:02]} Qh3+ {[%clk 00:04:40]} {[%emt 00:00:05]} 36. Ke1 {[%clk 00:00:25]}
{[%emt 00:00:01]} Qh4+ {[%clk 00:04:42]} {[%emt 00:00:04]} 37. Kd1 {[%clk
00:00:28]} {[%emt 00:00:01]} Qxg5 {[%clk 00:04:43]} {[%emt 00:00:05]} 38. Nf3
{[%clk 00:00:29]} {[%emt 00:00:02]} Qf4 {[%clk 00:04:40]} {[%emt 00:00:08]} 39.
Nd2 {[%clk 00:00:31]} {[%emt 00:00:04]} Kd7 {[%clk 00:04:41]} {[%emt 00:00:04]}
40. Nxe4 {[%clk 00:00:34]} {[%emt 00:00:02]} dxe4 {[%clk 00:04:45]} 41. Ke1
{[%clk 00:00:33]} {[%emt 00:00:07]} e3 {[%clk 00:04:49]} {[%emt 00:00:01]} 42.
Kd1 {[%clk 00:00:34]} {[%emt 00:00:04]} Qf1+ {[%clk 00:04:53]} {[%emt
00:00:01]} 43. Re1 {[%clk 00:00:38]} {[%emt 00:00:01]} Qd3+ {[%clk 00:04:58]}
{[%emt 00:00:01]} 0-1

[ePGN "0.1;DGT LiveChess/2.2.6"]

[Event "Goteborg Open 2024"]
[Site "Goteborgs Schackcentrum, Vegatan 20, Gothenburg, Sweden"]
[Date "2024.08.02"]
[Round "1.2"]
[White "Ask, Josef"]
[Black "Johansson, Eva"]
[Result "1-0"]
[TimeControl "15 minutes + 5 seconds per move from move one (Round 1 - 4) / 90 minutes + 30 seconds per move from move one (Round 5 - 8)"]
[WhiteTitle "FM"]
[WhiteElo "2129"]
[BlackElo "1878"]

1. c4 {[%clk 00:15:09]} {[%emt 00:00:01]} d6 {[%clk 00:15:07]} {[%emt
00:00:02]} 2. Nc3 {[%clk 00:15:11]} {[%emt 00:00:04]} e5 {[%clk 00:15:09]}
{[%emt 00:00:01]} 3. g3 {[%clk 00:15:09]} {[%emt 00:00:08]} Nf6 {[%clk
00:14:59]} {[%emt 00:00:15]} 4. Bg2 {[%clk 00:15:12]} {[%emt 00:00:03]} c6
{[%clk 00:14:35]} {[%emt 00:00:28]} 5. d3 {[%clk 00:15:02]} {[%emt 00:00:15]}
Be7 {[%clk 00:14:18]} {[%emt 00:00:22]} 6. Nf3 {[%clk 00:14:45]} {[%emt
00:00:22]} Qc7 {[%clk 00:13:21]} {[%emt 00:01:03]} 7. O-O {[%clk 00:14:01]}
{[%emt 00:00:48]} O-O {[%clk 00:13:16]} {[%emt 00:00:10]} 8. Rb1 {[%clk
00:13:50]} {[%emt 00:00:17]} Bg4 {[%clk 00:11:28]} {[%emt 00:01:52]} 9. h3
{[%clk 00:13:46]} {[%emt 00:00:09]} Bh5 {[%clk 00:11:21]} {[%emt 00:00:11]} 10.
b4 {[%clk 00:13:37]} {[%emt 00:00:15]} Nbd7 {[%clk 00:10:28]} {[%emt 00:00:58]}
11. b5 {[%clk 00:13:12]} {[%emt 00:00:31]} Rab8 {[%clk 00:09:48]} {[%emt
00:00:44]} 12. Ba3 {[%clk 00:12:43]} {[%emt 00:00:34]} Rfe8 {[%clk 00:08:13]}
{[%emt 00:01:36]} 13. Nd2 {[%clk 00:12:24]} {[%emt 00:00:29]} Bf8 {[%clk
00:07:46]} {[%emt 00:00:32]} 14. bxc6 {[%clk 00:11:25]} {[%emt 00:01:04]} bxc6
{[%clk 00:07:46]} {[%emt 00:00:02]} 15. Qa4 {[%clk 00:11:11]} {[%emt 00:00:22]}
Rec8 {[%clk 00:06:57]} {[%emt 00:00:54]} 16. Rxb8 {[%clk 00:10:18]} {[%emt
00:00:57]} Nxb8 {[%clk 00:07:01]} {[%emt 00:00:02]} 17. g4 {[%clk 00:09:55]}
{[%emt 00:00:28]} Bg6 {[%clk 00:07:04]} {[%emt 00:00:01]} 18. Rb1 {[%clk
00:09:16]} {[%emt 00:00:44]} Nbd7 {[%clk 00:06:38]} {[%emt 00:00:30]} 19. Qa6
{[%clk 00:08:35]} {[%emt 00:00:47]} Nb8 {[%clk 00:06:17]} {[%emt 00:00:26]} 20.
Qb7 {[%clk 00:08:22]} {[%emt 00:00:18]} h5 {[%emt 00:00:54]} 21. Qxc7 {[%clk
00:08:11]} {[%emt 00:00:02]} 1-0

[ePGN "0.1;DGT LiveChess/2.2.6"]

[Event "Goteborg Open 2024"]
[Site "Goteborgs Schackcentrum, Vegatan 20, Gothenburg, Sweden"]
[Date "2024.08.02"]
[Round "1.3"]
[White "Torres, Lucas"]
[Black "Eriksson, Kristian"]
[Result "0-1"]
[TimeControl "15 minutes + 5 seconds per move from move one (Round 1 - 4) / 90 minutes + 30 seconds per move from move one (Round 5 - 8)"]
[BlackFideId "1705172"]
[WhiteElo "1861"]
[BlackElo "2064"]

1. e4 {[%clk 00:15:09]} {[%emt 00:00:01]} e5 {[%clk 00:15:07]} {[%emt
00:00:03]} 2. Nf3 {[%clk 00:15:11]} {[%emt 00:00:02]} Nc6 {[%clk 00:15:09]}
{[%emt 00:00:03]} 3. d4 {[%clk 00:15:10]} {[%emt 00:00:06]} exd4 {[%clk
00:15:11]} {[%emt 00:00:03]} 4. Bc4 {[%clk 00:15:01]} {[%emt 00:00:14]} Nf6
{[%clk 00:15:09]} {[%emt 00:00:07]} 5. e5 {[%clk 00:15:05]} {[%emt 00:00:02]}
d5 {[%clk 00:15:08]} {[%emt 00:00:06]} 6. Bb5 {[%clk 00:15:08]} {[%emt
00:00:01]} Ne4 {[%clk 00:14:59]} {[%emt 00:00:13]} 7. Nxd4 {[%clk 00:15:10]}
{[%emt 00:00:04]} Qh4 {[%clk 00:13:27]} {[%emt 00:01:38]} 8. g3 {[%clk
00:14:15]} {[%emt 00:00:59]} Nxg3 {[%clk 00:13:08]} {[%emt 00:00:24]} 9. fxg3
{[%clk 00:12:11]} {[%emt 00:02:09]} Qe4+ {[%clk 00:12:27]} {[%emt 00:00:47]} 10.
Kf2 {[%clk 00:12:00]} {[%emt 00:00:15]} Bg4 {[%clk 00:10:56]} {[%emt 00:01:36]}
11. Nc3 {[%clk 00:09:46]} {[%emt 00:02:20]} Qg6 {[%clk 00:10:04]} {[%emt
00:00:56]} 12. Qd3 {[%clk 00:08:01]} {[%emt 00:01:51]} Bc5 {[%clk 00:09:55]}
{[%emt 00:00:13]} 13. Be3 {[%clk 00:07:08]} {[%emt 00:00:58]} O-O {[%clk
00:08:49]} {[%emt 00:01:12]} 14. Bxc6 {[%clk 00:05:17]} {[%emt 00:01:56]} bxc6
{[%clk 00:07:33]} {[%emt 00:01:20]} 15. Rhe1 {[%clk 00:02:20]} {[%emt
00:03:00]} Bxd4 {[%clk 00:06:08]} {[%emt 00:01:33]} 16. Bxd4 {[%clk 00:01:20]}
{[%emt 00:01:05]} Bf5 {[%clk 00:06:01]} {[%emt 00:00:11]} 17. Qe3 {[%clk
00:00:42]} {[%emt 00:00:44]} Rae8 {[%clk 00:05:47]} {[%emt 00:00:19]} 18. Ne2
{[%clk 00:00:16]} {[%emt 00:00:30]} f6 {[%clk 00:05:20]} {[%emt 00:00:33]} 19.
Nf4 {[%clk 00:00:10]} {[%emt 00:00:11]} Qh6 {[%clk 00:05:12]} {[%emt 00:00:12]}
20. Kg1 {[%clk 00:00:08]} {[%emt 00:00:08]} fxe5 {[%clk 00:04:58]} {[%emt
00:00:19]} 21. Bxe5 {[%clk 00:00:12]} {[%emt 00:00:01]} Be4 {[%clk 00:04:59]}
{[%emt 00:00:03]} 22. Bd4 {[%clk 00:00:08]} {[%emt 00:00:09]} g5 {[%clk
00:04:12]} {[%emt 00:00:53]} 23. Ng2 {[%clk 00:00:00]} 0-1

[ePGN "0.1;DGT LiveChess/2.2.6"]

[Event "Goteborg Open 2024"]
[Site "Goteborgs Schackcentrum, Vegatan 20, Gothenburg, Sweden"]
[Date "2024.08.02"]
[Round "1.4"]
[White "Kring, Stephan"]
[Black "Lindholm, Marcus"]
[Result "0-1"]
[TimeControl "15 minutes + 5 seconds per move from move one (Round 1 - 4) / 90 minutes + 30 seconds per move from move one (Round 5 - 8)"]
[WhiteFideId "1711687"]
[WhiteElo "2057"]
[BlackElo "1851"]

1. d4 {[%clk 00:15:09]} d5 {[%clk 00:15:08]} {[%emt 00:00:02]} 2. c4 {[%clk
00:15:13]} {[%emt 00:00:01]} c6 {[%clk 00:15:12]} {[%emt 00:00:01]} 3. Nf3
{[%clk 00:15:16]} {[%emt 00:00:02]} Nf6 {[%clk 00:15:15]} {[%emt 00:00:03]} 4.
Nc3 {[%clk 00:15:20]} e6 {[%clk 00:15:15]} {[%emt 00:00:05]} 5. Bg5 {[%clk
00:15:18]} {[%emt 00:00:08]} dxc4 {[%clk 00:15:18]} {[%emt 00:00:01]} 6. e4
{[%clk 00:14:50]} {[%emt 00:00:33]} b5 {[%clk 00:15:21]} {[%emt 00:00:02]} 7.
a3 {[%clk 00:14:33]} {[%emt 00:00:22]} Be7 {[%clk 00:14:39]} {[%emt 00:00:48]}
8. Qc2 {[%clk 00:14:36]} {[%emt 00:00:02]} Nbd7 {[%clk 00:13:28]} {[%emt
00:01:15]} 9. g3 {[%clk 00:14:29]} {[%emt 00:00:12]} Bb7 {[%clk 00:13:02]}
{[%emt 00:00:31]} 10. Bg2 {[%clk 00:14:24]} {[%emt 00:00:10]} O-O {[%clk
00:11:58]} {[%emt 00:01:09]} 11. Rd1 {[%clk 00:14:03]} {[%emt 00:00:26]} h6
{[%clk 00:11:58]} {[%emt 00:00:05]} 12. Bf4 {[%clk 00:13:39]} {[%emt 00:00:28]}
Qb6 {[%clk 00:11:44]} {[%emt 00:00:20]} 13. O-O {[%clk 00:13:35]} {[%emt
00:00:09]} Rfd8 {[%clk 00:11:15]} {[%emt 00:00:34]} 14. h3 {[%clk 00:12:27]}
{[%emt 00:01:13]} Nf8 {[%clk 00:11:06]} {[%emt 00:00:14]} 15. Ne5 {[%clk
00:11:36]} {[%emt 00:00:56]} Bd6 {[%clk 00:09:03]} {[%emt 00:02:08]} 16. Be3
{[%clk 00:11:34]} {[%emt 00:00:07]} Qc7 {[%clk 00:08:58]} {[%emt 00:00:09]} 17.
f4 {[%clk 00:11:38]} {[%emt 00:00:02]} N6d7 {[%clk 00:07:36]} {[%emt 00:01:27]}
18. Nf3 {[%clk 00:10:43]} {[%emt 00:00:59]} f6 {[%clk 00:07:34]} {[%emt
00:00:08]} 19. e5 {[%clk 00:07:06]} {[%emt 00:03:41]} Be7 {[%clk 00:06:51]}
{[%emt 00:00:49]} 20. g4 {[%clk 00:06:16]} {[%emt 00:00:55]} a6 {[%clk
00:05:37]} {[%emt 00:01:19]} 21. exf6 {[%clk 00:05:31]} {[%emt 00:00:50]} Nxf6
{[%clk 00:04:54]} {[%emt 00:00:48]} 22. g5 {[%clk 00:04:14]} {[%emt 00:01:21]}
hxg5 {[%clk 00:04:02]} {[%emt 00:00:58]} 23. Nxg5 {[%clk 00:04:16]} {[%emt
00:00:02]} Nd5 {[%clk 00:04:03]} {[%emt 00:00:05]} 24. Nxd5 {[%clk 00:04:09]}
{[%emt 00:00:13]} cxd5 {[%clk 00:03:57]} {[%emt 00:00:10]} 25. f5 {[%clk
00:03:34]} {[%emt 00:00:39]} Bxg5 {[%clk 00:02:11]} {[%emt 00:01:52]} 26. Bxg5
{[%clk 00:03:36]} {[%emt 00:00:03]} Re8 {[%clk 00:02:07]} {[%emt 00:00:09]} 27.
f6 {[%clk 00:03:03]} {[%emt 00:00:38]} Qf7 {[%clk 00:01:52]} {[%emt 00:00:20]}
28. fxg7 {[%clk 00:02:22]} {[%emt 00:00:46]} Qxg7 {[%clk 00:01:55]} {[%emt
00:00:03]} 29. Bf4 {[%clk 00:02:24]} {[%emt 00:00:02]} Ng6 {[%clk 00:01:52]}
{[%emt 00:00:08]} 30. Bg3 {[%clk 00:01:59]} {[%emt 00:00:29]} e5 {[%clk
00:01:37]} {[%emt 00:00:21]} 31. dxe5 {[%clk 00:02:01]} {[%emt 00:00:03]} Nxe5
{[%clk 00:01:41]} {[%emt 00:00:01]} 32. Qc3 {[%clk 00:01:58]} {[%emt 00:00:08]}
Nd3 {[%clk 00:01:35]} {[%emt 00:00:11]} 33. Qxg7+ {[%clk 00:01:54]} {[%emt
00:00:09]} Kxg7 {[%clk 00:01:39]} 34. b3 {[%clk 00:01:57]} {[%emt 00:00:02]}
Rf8 {[%clk 00:00:47]} {[%emt 00:00:58]} 35. bxc4 {[%clk 00:01:47]} {[%emt
00:00:15]} bxc4 {[%clk 00:00:43]} {[%emt 00:00:08]} 36. Rb1 {[%clk 00:01:46]}
{[%emt 00:00:05]} Rxf1+ {[%clk 00:00:42]} {[%emt 00:00:06]} 37. Bxf1 {[%clk
00:01:20]} {[%emt 00:00:32]} Bc8 {[%clk 00:00:45]} {[%emt 00:00:02]} 38. Bf2
{[%clk 00:01:05]} {[%emt 00:00:20]} Nxf2 {[%clk 00:00:35]} {[%emt 00:00:15]} 39.
Kxf2 {[%clk 00:01:10]} {[%emt 00:00:01]} Bf5 {[%clk 00:00:38]} {[%emt
00:00:02]} 40. Rb7+ {[%clk 00:01:10]} {[%emt 00:00:04]} Kf6 {[%clk 00:00:39]}
{[%emt 00:00:04]} 41. Ke3 {[%clk 00:01:14]} {[%emt 00:00:01]} Ke5 {[%clk
00:00:38]} {[%emt 00:00:06]} 42. Re7+ {[%clk 00:01:12]} {[%emt 00:00:06]} Be6
{[%clk 00:00:42]} {[%emt 00:00:02]} 43. h4 {[%clk 00:01:12]} {[%emt 00:00:05]}
d4+ {[%clk 00:00:45]} {[%emt 00:00:01]} 44. Kd2 {[%clk 00:01:15]} {[%emt
00:00:02]} c3+ {[%clk 00:00:49]} {[%emt 00:00:02]} 45. Kd3 {[%clk 00:01:15]}
{[%emt 00:00:06]} Rh8 {[%clk 00:00:50]} {[%emt 00:00:02]} 46. Bh3 {[%clk
00:01:14]} {[%emt 00:00:06]} Rh6 {[%clk 00:00:53]} {[%emt 00:00:02]} 47. Bxe6
{[%clk 00:01:08]} {[%emt 00:00:12]} Rxe6 {[%clk 00:00:56]} 48. Rh7 {[%clk
00:01:10]} {[%emt 00:00:02]} Rf6 {[%clk 00:00:57]} {[%emt 00:00:05]} 49. Re7+
{[%clk 00:01:08]} {[%emt 00:00:07]} Re6 {[%clk 00:00:56]} {[%emt 00:00:07]} 50.
Rg7 {[%clk 00:01:08]} {[%emt 00:00:05]} Kf6 {[%clk 00:00:56]} {[%emt 00:00:04]}
51. Rg5 {[%clk 00:01:10]} {[%emt 00:00:03]} Rd6 {[%clk 00:00:56]} {[%emt
00:00:05]} 52. Ra5 {[%clk 00:01:07]} {[%emt 00:00:08]} Rc6 {[%clk 00:00:55]}
{[%emt 00:00:06]} 53. Kc2 {[%clk 00:01:09]} {[%emt 00:00:03]} Rb6 {[%clk
00:00:53]} {[%emt 00:00:07]} 54. Kd3 {[%clk 00:01:00]} {[%emt 00:00:14]} Kg6
{[%clk 00:00:36]} {[%emt 00:00:22]} 55. Rd5 {[%clk 00:00:43]} {[%emt 00:00:22]}
Rc6 {[%clk 00:00:38]} {[%emt 00:00:03]} 56. Kc2 {[%clk 00:00:46]} {[%emt
00:00:02]} Rc4 {[%clk 00:00:41]} {[%emt 00:00:02]} 57. Rd6+ {[%clk 00:00:48]}
{[%emt 00:00:03]} Kh5 {[%clk 00:00:45]} {[%emt 00:00:01]} 58. Rxa6 {[%clk
00:00:52]} {[%emt 00:00:02]} Kxh4 {[%clk 00:00:47]} {[%emt 00:00:02]} 59. Rd6
{[%clk 00:00:48]} {[%emt 00:00:09]} Kg3 {[%clk 00:00:48]} {[%emt 00:00:04]} 60.
Rf6 {[%clk 00:00:52]} {[%emt 00:00:01]} d3+ {[%clk 00:00:50]} {[%emt 00:00:03]}
61. Kxd3 {[%clk 00:00:55]} {[%emt 00:00:02]} c2 {[%clk 00:00:53]} {[%emt
00:00:02]} 0-1

[ePGN "0.1;DGT LiveChess/2.2.6"]

[Event "Goteborg Open 2024"]
[Site "Goteborgs Schackcentrum, Vegatan 20, Gothenburg, Sweden"]
[Date "2024.08.02"]
[Round "1.5"]
[White "Saleh, Saqr"]
[Black "Karlsson, Stefan"]
[Result "0-1"]
[TimeControl "15 minutes + 5 seconds per move from move one (Round 1 - 4) / 90 minutes + 30 seconds per move from move one (Round 5 - 8)"]
[BlackFideId "1771183"]
[WhiteElo "1835"]
[BlackElo "2042"]

1. c4 {[%clk 00:15:07]} {[%emt 00:00:02]} Nf6 {[%clk 00:15:08]} {[%emt
00:00:02]} 2. Nc3 {[%clk 00:15:07]} {[%emt 00:00:05]} g6 {[%clk 00:15:12]}
{[%emt 00:00:02]} 3. Nf3 {[%clk 00:15:06]} {[%emt 00:00:05]} Bg7 {[%clk
00:15:15]} {[%emt 00:00:01]} 4. d4 {[%clk 00:15:09]} {[%emt 00:00:02]} O-O
{[%clk 00:15:18]} {[%emt 00:00:02]} 5. e4 {[%clk 00:15:13]} {[%emt 00:00:02]}
d6 {[%clk 00:15:22]} {[%emt 00:00:01]} 6. Be2 {[%clk 00:15:16]} {[%emt
00:00:03]} e5 {[%clk 00:15:26]} 7. dxe5 {[%clk 00:15:19]} {[%emt 00:00:02]}
dxe5 {[%clk 00:15:27]} {[%emt 00:00:04]} 8. Qxd8 {[%clk 00:15:21]} {[%emt
00:00:03]} Rxd8 {[%clk 00:15:28]} {[%emt 00:00:03]} 9. Bg5 {[%clk 00:15:24]}
{[%emt 00:00:03]} Re8 {[%clk 00:14:05]} {[%emt 00:01:27]} 10. Nd5 {[%clk
00:15:27]} {[%emt 00:00:02]} Nxd5 {[%clk 00:14:05]} {[%emt 00:00:06]} 11. cxd5
{[%clk 00:15:29]} {[%emt 00:00:02]} c6 {[%clk 00:14:08]} {[%emt 00:00:02]} 12.
Bc4 {[%clk 00:15:33]} h6 {[%clk 00:11:55]} {[%emt 00:02:18]} 13. Bh4 {[%clk
00:14:06]} {[%emt 00:01:32]} cxd5 {[%clk 00:11:29]} {[%emt 00:00:31]} 14. Bxd5
{[%clk 00:14:09]} {[%emt 00:00:03]} Nc6 {[%clk 00:11:09]} {[%emt 00:00:24]} 15.
Bxc6 {[%clk 00:12:33]} {[%emt 00:01:42]} bxc6 {[%clk 00:11:12]} {[%emt
00:00:01]} 16. Ke2 {[%clk 00:12:37]} {[%emt 00:00:01]} Rb8 {[%clk 00:10:43]}
{[%emt 00:00:34]} 17. b3 {[%clk 00:11:34]} {[%emt 00:01:09]} f5 {[%clk
00:10:00]} {[%emt 00:00:47]} 18. exf5 {[%clk 00:05:15]} {[%emt 00:06:25]} e4
{[%clk 00:09:13]} {[%emt 00:00:52]} 19. Nd2 {[%clk 00:03:55]} {[%emt 00:01:26]}
Ba6+ {[%clk 00:07:44]} {[%emt 00:01:32]} 20. Ke3 {[%clk 00:03:10]} {[%emt
00:00:50]} g5 {[%clk 00:06:49]} {[%emt 00:00:59]} 21. Bg3 {[%clk 00:03:09]}
{[%emt 00:00:07]} Rbd8 {[%clk 00:06:26]} {[%emt 00:00:28]} 22. Nc4 {[%clk
00:01:48]} {[%emt 00:01:27]} Rd3+ {[%clk 00:04:43]} {[%emt 00:01:47]} 23. Ke2
{[%clk 00:01:51]} {[%emt 00:00:02]} Bxc4 {[%clk 00:04:32]} {[%emt 00:00:16]} 24.
bxc4 {[%clk 00:01:39]} {[%emt 00:00:17]} Bxa1 {[%clk 00:04:34]} {[%emt
00:00:04]} 25. Rxa1 {[%clk 00:01:42]} {[%emt 00:00:03]} Rc3 {[%clk 00:03:43]}
{[%emt 00:00:54]} 26. Rb1 {[%clk 00:00:23]} {[%emt 00:01:25]} Rxc4 {[%clk
00:03:02]} {[%emt 00:00:46]} 27. Rb7 {[%clk 00:00:06]} {[%emt 00:00:22]} Rc2+
{[%clk 00:01:52]} {[%emt 00:01:14]} 28. Ke3 {[%clk 00:00:11]} {[%emt 00:00:01]}
Rxa2 {[%clk 00:01:49]} {[%emt 00:00:07]} 29. Bd6 {[%clk 00:00:06]} {[%emt
00:00:10]} Rf8 {[%clk 00:00:08]} {[%emt 00:01:46]} 30. Bxf8 {[%clk 00:00:00]}
{[%emt 00:00:07]} Kxf8 {[%clk 00:00:08]} {[%emt 00:00:01]} 0-1

[ePGN "0.1;DGT LiveChess/2.2.6"]